Cogmind - Beta 14 @@@ ROGUE MODE // 2025.04.27 @ 16:53:03 Player: Desos Result: Destroyed by U8-ZUJ(R) with Subdweller Shrapnel Launcher Performance ------------- Evolutions (0) 0 Regions Visited (2) 400 Robots Destroyed (22) 110 Value Destroyed (706) 706 Prototype IDs (0) 0 Alien Tech Used (0) 0 Bonus (0) 0 TOTAL SCORE: 1216 Bonus ------- None Cogmind --------- Core Integrity 0/250 Matter 265/300 Energy 123/125 System Corruption 2% Temperature Cool (0) Movement Rolling (100) Location -10/Subcaves Parts ------- > --- POWER (1) -------- Light Ion Engine (fused) > --- PROPULSION (2) --- Compact Wheel Compact Wheel > --- UTILITY (2) ------ Large Storage Unit Terrain Scanner > --- WEAPON (2) ------- Grenade Launcher > --- INVENTORY (15) --- Light Treads Light Treads Compact Wheel Subdweller Monowheel Improved Heat Sink Large Matter Pod (150) Structural Scanner Seismic Detector Makeshift Light Armor Plating Makeshift Thermal Plating Subdweller Machine Gun Light Cannon Subdweller Shrapnel Launcher Datajack Enhanced Flamer Peak State ------------ > --- POWER ------------ Light Ion Engine > --- PROPULSION ------- Light Treads Compact Wheel > --- UTILITY ---------- Improved Heat Sink Large Storage Unit > --- WEAPON ----------- Particle Gun Light Cannon > --- INVENTORY -------- Light Ion Engine Light Ion Engine Light Treads Compact Wheel Large Matter Pod Signal Interpreter Terrain Scanner Terrain Scanner Grenade Launcher Grenade Launcher [Rating: 11] Favorites ----------- Power Light Ion Engine Engine Light Ion Engine Propulsion Compact Wheel Treads Light Treads Wheel Compact Wheel Utility Large Storage Unit Device Improved Heat Sink Storage Large Storage Unit Weapon Particle Gun Energy Gun Particle Gun Ballistic Gun Assault Rifle Ballistic Cannon Light Cannon Launcher Grenade Launcher Build | -11 -10 -10 ------- Run | Yrd Mat Sub Slots Evolved . | . . . Power . | . . . Propulsion . | . . . Utility . | . . . Weapon . | . . . Parts Attached 45 | 6 33 6 Power 4 | 2 1 1 Engine 4 | 2 1 1 Core . | . . . Reactor . | . . . Propulsion 27 | 2 24 1 Treads 12 | . 12 . Leg . | . . . Wheel 15 | 2 12 1 Hover . | . . . Flight . | . . . Utility 6 | 1 4 1 Device 4 | . 3 1 Storage 2 | 1 1 . Processor . | . . . Hackware . | . . . Protection . | . . . Artifact . | . . . Weapon 8 | 1 4 3 Energy Gun 2 | . 2 . Energy Cannon . | . . . Ballistic Gun 2 | 1 1 . Ballistic Cannon 1 | . 1 . Launcher 3 | . . 3 Special Weapon . | . . . Impact Weapon . | . . . Slashing Weapon . | . . . Piercing Weapon . | . . . Special Melee Weapon . | . . . Unidentified Prototypes . | . . . Parts Lost 5 | . 1 4 Power 2 | . 1 1 Propulsion . | . . . Utility . | . . . Weapon 3 | . . 3 Highest Loss Streak 1 | . 1 1 To Critical Strikes . | . . . Average Slot Usage (%) 98 | . 98 98 Engine 13 | . 14 12 Treads 8 | . 9 3 Wheel 19 | . 18 24 Device 13 | . 13 14 Storage 14 | . 14 14 Energy Gun 10 | . 13 3 Ballistic Gun 2 | . 3 . Ballistic Cannon 8 | . 10 3 Launcher 6 | . . 21 Peak Build Rating 11 | 5 11 11 Average Rating 9 | 3 9 9 On Entrance 5 | . 5 11 Naked Turns . | . . . Heaviest Build 30 | 12 30 30 Greatest Support 40 | 26 40 32 Greatest Overweight (x) 1 | . 1 1 Average Overweight (x) . | . . . Largest Inventory Capacity 15 | 8 15 15 Average Capacity 11 | 6 10 15 Most Carried 15 | 5 15 15 Average Carried 10 | 3 9 14 Final Capacity 15 | 8 15 15 Final Carried 15 | 4 15 15 Class Distribution -------------------- 100% | Mutant Dominant Class ---------------- Mutant | -10/Materials Mutant | -10/Subcaves Resources | -11 -10 -10 ----------- Run | Yrd Mat Sub Matter Collected 1348 | 258 646 444 Remotely . | . . . Salvage Created 593 | . 420 173 Parts 34 | . 22 12 Haulers Intercepted . | . . . Recyclers Shooed . | . . . Parts Field Recycled . | . . . Retrieved Matter . | . . . Parts Self-Destructed 9 | . . 9 Prevented . | . . . Kills | -11 -10 -10 ------- Run | Yrd Mat Sub Combat Hostiles Destroyed 19 | . 10 9 Guns 7 | . 7 . Cannons 3 | . 3 . AOE 9 | . . 9 Classes Destroyed 5 | . 2 3 Watcher 3 | . 3 . Swarmer 3 | . . 3 Grunt 11 | . 10 1 Sentry 1 | . . 1 Subdweller 4 | . . 4 Best Kill Streak 3 | . 3 3 Combat Bots Only 3 | . 2 3 Max Kills in Single Turn 2 | . 1 2 Gunslinging . | . . . Exploded 2 | . . 2 Melee . | . . . Uniques/NPCs Destroyed . | . . . Combat | -11 -10 -10 -------- Run | Yrd Mat Sub Hostile Shots Fired 82 | . 57 25 Missed 28 | . 18 10 Damage Taken 910 | . 491 419 Core 258 | . 134 124 Absorbed by Shields . | . . . Core Remaining (%) 100 | 100 . . Volleys Fired 64 | . 47 17 Largest 2 | . 2 2 Hottest 100 | . 100 60 Shots Fired 124 | . 89 35 Gun 67 | . 67 . Cannon 23 | . 22 1 Launcher 34 | . . 34 Special . | . . . Kinetic 55 | . 54 1 Thermal 35 | . 35 . Explosive 34 | . . 34 Electromagnetic . | . . . Robot Hit Streak 15 | . 15 9 Robot Miss Streak 4 | . 4 2 Penetration Max . | . . . Secondary Targets . | . . . Shots Hit Robots 58 | . 51 7 Core Hits 44 | . 16 28 Critical Kills 2 | . 2 . Critical Parts Destroyed . | . . . Critical Strikes 4 | . 4 . Burn 1 | . 1 . Destroy 2 | . 2 . Blast 1 | . 1 . Melee Attacks . | . . . Impact . | . . . Slashing . | . . . Piercing . | . . . Sneak Attacks . | . . . Combat Hostiles . | . . . Follow-up Attacks . | . . . Damage Inflicted 2235 | . 764 1471 Guns 512 | . 512 . Cannons 252 | . 252 . Explosions 1471 | . . 1471 Melee . | . . . Ramming . | . . . Kinetic 449 | . 449 . Thermal 315 | . 315 . Explosive 1471 | . . 1471 Electromagnetic . | . . . Impact . | . . . Slashing . | . . . Piercing . | . . . Highest Corruption 2 | . 2 2 Average Corruption 2 | . 2 2 Corruption Purged . | . . . Corruption Blocked . | . . . Effects 44 | . 30 14 Message Errors 11 | . 8 3 Matter Fused 11 | . 8 3 Heat Flow Errors 4 | . 4 . Energy Discharges 3 | . 3 . Parts Rejected 1 | . 1 . Parts Fused 1 | . . 1 Data Loss (minor) 4 | . 3 1 Data Loss (major) 3 | . 1 2 Misfires 4 | . 1 3 Alerts 1 | . 1 . Weapon Failures 1 | . . 1 Overload Shots . | . . . Overflow Damage 9 | . 9 . Projectiles 9 | . 9 . Explosions . | . . . Melee . | . . . Knockbacks 4 | . 4 . Impact . | . . . Kinetic 3 | . 3 . Secondary 1 | . 1 . Self-Inflicted Damage 63 | . . 63 Shots 4 | . . 4 Rammed . | . . . Targets Rammed . | . . . Kicked . | . . . Crushed . | . . . Highest Temperature 261 | . 261 . Average Temperature 58 | . 58 . Received Heat Transfer 327 | . 294 33 Siege Activations . | . . . Robots Corrupted . | . . . Combat Hostiles . | . . . Parts Fried . | . . . Impact Corruptions . | . . . Robots Melted . | . . . Combat Hostiles . | . . . Parts Melted . | . . . Heat Transferred 814 | . 814 . Parts Sabotaged . | . . . Parts Stolen . | . . . Parts Stripped . | . . . Power Chain Reactions . | . . . Alert | -11 -10 -10 ------- Run | Yrd Mat Sub Peak Influence 175 | . 175 . Initial . | . . . Average 43 | . 44 . Maximum Alert Level . | . . . Low Security (%) 100 | 100 100 . Level 1 . | . . . Level 2 . | . . . Level 3 . | . . . Level 4 . | . . . Level 5 . | . . . High Security . | . . . Max Security . | . . . Squads Dispatched 1 | . 1 . Investigation . | . . . Extermination . | . . . Reinforcement 1 | . 1 . Assault . | . . . Garrison . | . . . Intercept . | . . . Searches Triggered . | . . . Construction Impeded . | . . . Haulers Reinforced . | . . . Active Scanning Responses . | . . . Cargo Convoy Interrupts . | . . . Stealth | -11 -10 -10 --------- Run | Yrd Mat Sub Distress Signals 3 | . 3 . Communications Jammed . | . . . Distress Signals . | . . . Times Spotted 34 | . 25 9 Peak Tracking Total 3 | . 3 3 Tactical Retreats 3 | . 3 . Traps | -11 -10 -10 ------- Run | Yrd Mat Sub Traps Triggered 3 | . 1 2 Indirectly . | . . . Trap Hack Attempts . | . . . Triggered . | . . . Disarmed . | . . . Reprogrammed . | . . . Reused . | . . . Traps Extracted . | . . . Installed . | . . . Triggered . | . . . Machines | -11 -10 -10 ---------- Run | Yrd Mat Sub Machines Disabled 1 | . 1 . Max in Single Turn 1 | . 1 . Machines Repaired . | . . . Machines Dismantled . | . . . Machines Sabotaged . | . . . Overloaded Fab Kills . | . . . Hacking | -11 -10 -10 --------- Run | Yrd Mat Sub Machines Accessed 8 | . 8 . Terminals 6 | . 6 . Fabricators . | . . . Repair Stations . | . . . Recycling Units 2 | . 2 . Scanalyzers . | . . . Garrison Access . | . . . Total Hacks 31 | . 31 . Successful 15 | . 15 . Failed 16 | . 16 . Catastrophic 1 | . 1 . Database Lockouts . | . . . Manual 24 | . 24 . Terminals 26 | . 26 . Fabricators . | . . . Repair Stations . | . . . Recycling Units 5 | . 5 . Scanalyzers . | . . . Garrison Access . | . . . Terminal Hacks 2 | . 2 . Locate Traps 1 | . 1 . Registered Components 1 | . 1 . Fabricator Hacks . | . . . Repair Station Hacks . | . . . Recycling Unit Hacks . | . . . Scanalyzer . | . . . Garrison Access Hacks . | . . . Unauthorized Hacks 13 | . 13 . Terminals 9 | . 9 . Assimilate 1 | . 1 . Botnet 5 | . 5 . Operators 3 | . 3 . Fabricators . | . . . Repair Stations . | . . . Recycling Units 4 | . 4 . Reject 2 | . 2 . Recyclers 1 | . 1 . Mask 1 | . 1 . Scanalyzers . | . . . Garrison Access . | . . . Data Cores Recovered . | . . . Used . | . . . Hacking Detections 6 | . 6 . Full Trace Events . | . . . Feedback Events . | . . . Feedback Blocked . | . . . Robot Schematics Acquired . | . . . Robots Built . | . . . Authchips . | . . . Time . | . . . Total Robot Build Rating . | . . . Part Schematics Acquired . | . . . Parts Built . | . . . Authchips . | . . . Time . | . . . Total Part Build Rating . | . . . Parts Repaired . | . . . Time . | . . . Parts Recycled . | . . . Recycled Matter . | . . . Retrieved Matter . | . . . Retrieved Components . | . . . Parts Scanalyzed . | . . . Part Schematics Acquired . | . . . Parts Damaged . | . . . Bothacking | -11 -10 -10 ------------ Run | Yrd Mat Sub Used RIF Installer . | . . . Robots Hacked . | . . . Non-combat . | . . . Combat . | . . . Robot Hacks Applied . | . . . Relay Couplers Released . | . . . Fabnet Peak Effective % . | . . . Robots Rewired . | . . . Allies Hacked . | . . . Hacks Repelled . | . . . Allies | -11 -10 -10 -------- Run | Yrd Mat Sub Total Allies 1 | . 1 . Largest Group 1 | . 1 . Highest-Rated Group 10 | . 10 . Highest-Rated Ally 10 | . 10 . Total Orders . | . . . Ally Attacks . | . . . Total Damage . | . . . Kills . | . . . Allies Corrupted . | . . . Allies Melted . | . . . Intel | -11 -10 -10 ------- Run | Yrd Mat Sub Robot Analysis Total . | . . . Derelict Logs Recovered 1 | . . 1 Drone Launches . | . . . Drone Recoveries . | . . . Exploration | -11 -10 -10 ------------- Run | Yrd Mat Sub Turns Passed 3330 | 48 2334 948 Spaces Moved 2071 | 45 1274 752 Core 17 | 17 . . Treads 476 | . 391 85 Legs . | . . . Wheels 1578 | 28 883 667 Hover . | . . . Flight . | . . . Fastest Speed 50 | 50 90 100 Average Speed 128 | 74 138 116 Slowest Speed 240 | 90 240 240 Overloaded Moves . | . . . Propulsion Burnouts . | . . . Robots Hopped . | . . . Cave-ins Triggered . | . . . Exploration Rate (%) 48 | 3 101 41 Regions Visited 2 Branch Regions 1 Pre-discovered Areas . | . . . Known Exits Taken . | . . . Unknown Exits Taken 2 | 1 1 . Scrap Searched 9 | . . 9 Spaces Dug 11 | . . 11 Terrain Destroyed 147 | . . 147 Melee . | . . . Projectile . | . . . AOE 147 | . . 147 Terrain Rammed . | . . . Walls Destroyed . | . . . Machines Disabled . | . . . Actions | -11 -10 -10 --------- Run | Yrd Mat Sub Total 2599 | 59 1750 790 Wait 374 | . 372 2 Move 2069 | 44 1273 752 Hop . | . . . Pick Up 35 | 8 19 8 Fast Attach 2 | 1 1 . Attach 10 | 4 3 3 Detach . | . . . Swap 33 | 1 29 3 Drop 12 | 1 6 5 Fire 64 | . 47 17 Melee . | . . . Ram . | . . . Kick . | . . . Crush . | . . . Escape Stasis . | . . . Rewire . | . . . Trap . | . . . Miscellaneous . | . . . Route ------- -11/Scrapyard -10/Materials (discovered 5 exits: [*Mat x3] / [*Min] / [*Sub]) -10/Subcaves History --------- Turn | Location | Event 8 | -11/Scrapyard | Discovered new exit (range 15) 49 | -11/Scrapyard | Entered Materials 311 | -10/Materials | Build established: Mutant 335 | -10/Materials | Discovered new exit (range 15) 852 | -10/Materials | Discovered new exit (range 9) 1076 | -10/Materials | Discovered new exit (range 16) 1160 | -10/Materials | Discovered new exit (range 5) 1215 | -10/Materials | Discovered new exit (range 3) 1484 | -10/Materials | Core integrity fell below 50% 2383 | -10/Materials | Entered Subcaves 2573 | -10/Subcaves | Learned Materials stockpile data 2863 | -10/Subcaves | Ambushed by Subdweller buried in earth 2988 | -10/Subcaves | Core integrity fell below 20% 3331 | -10/Subcaves | Destroyed by U8-ZUJ(R) with Subdweller Shrapnel Launcher Last Messages --------------- 03229_ Acquired 8 matter. 03232_ Searching scrap... 03232_ Found Mak. Thermal Plating. 03232_ Found Enh. Flamer. 03232_ Found 61 Matter. 03233_ Acquired 61 matter. 03240_ Acquired 11 matter. 03241_ System corrupted: Matter fused (-10). 03252_ Acquired 26 matter. 03254_ Acquired 21 matter. 03255_ Dropped Signal Interpreter. 03257_ Acquired Sub. Shrapnel Launcher. 03299_ Dropped Mak. Light Armor Plating. 03304_ Acquired Enh. Flamer. 03306_ Dropped Mak. Shrapnel Gun. 03307_ Acquired Mak. Thermal Plating. 03328_ G-34 Mercenary destroyed. 03330_ System corrupted: Substantial component data lost. 03330_ U8-ZUJ(R): "SLEEPOVER!" 03331_ Grenade Launcher destroyed. Map ----- +----------------------------------------------------+ | ???????????????????????????????# ????????????????? | | ?????????????????????????????? ????????????????? | | ?????????????????????????????? ????????????????? | | ?????????????????????????##??? ????????#???????? | | ????????????????????????? ???? ##????? #???????? | | ???????????????????????? ???? ##??? #???????? | | ????????#########??????# ????? ##?? #???????? | | ?????#### ##?#### ?????? #? #???#???? | | ????## ### ???????# ## #???????? | | ????# ## ????????# #???????? | | ?#???# #? #???? ????" "#????#??? | | ?####?# ### ##???? ??? "##??????? | | ## #### ## ##?????"?##= #????????? | | ### ##?????##!% ##???????? | | ### #??#### #???????? | | ### #### #### & " ##???????? | | ??### #### ## ## & ### ##????????? | | ????## ### ##### #??#?????????? | | ?????## # ##???## ##?#??????????? | | ??????# ## #????## " ###??????????? | | ??????# # ##???# """" ""##??#???????? | | ?????## #???# # """"" ""##?????????? | | ?????# #???# ## " ""#?????????? | | ????## #?#### ## "" ""%#?????????? | | ????# # # #????# # """" ##??#??????? | | ???# ## ########???## @# """#####???#??????? | | ??# ?# #??????????# ## "##??#?#?????????? | | ??# ?# #???#??????## ! #####???????????????? | | ??# ? ##?#?????????# # #?#??#??????????????? | | ?? ? ##??????????#?## R##?????????#?????????? | | ##?????????????### #???????????????????? | | ?????????????????# ???????????????????? | | ??#?????????????# ???????????????????? | | ???????????#????# ??#???????????????? | | # #?????????????#??# ##??????????????? | | ? ??????????????????# #??????????????? | | ?# ## ??????????????????? g # #?????????????? | | ???#?##??????????????????? %#????????????????? | | ?????????????????#????????### % ???????????????? | | ?????????????????#???????????## %#?????????????? | | ???????????????????????????????##% #?????????????? | | ????????????????????????????????? ##?????????????? | | ?????????????????????????????????? ??????????????? | | ??????????????????????????????????? ?????????????? | | ???????????????????????????????????? ????????????? | | ????????????????????#???????????????# ???????????? | | ?????????????????????????????????????? ??????????? | | ???????????????????????????????????????#?????????? | | ?????????????????????????????????????????????????? | | ?????????????????????????????????????????????????? | +----------------------------------------------------+ Best States ------------- Heat Dissipation 39 Energy Generation 10 Energy Capacity 250 Matter Stores 300 Matter Capacity 300 Sight Range 16 Terrain Scan Range 14 Terrain Scan Density 10 Evasion (%) 50 Recoil Reduction 2 Item Schematics ----------------- None Robot Schematics ------------------ None Fabricated ------------ Nothing Alien Tech Used ----------------- None Achievements -------------- Dramatic Entrance Challenges ------------ None Game ------ Seed ArmageddonNavigationNetwork Manual? 0 Play Time 00:27:02 Cumulative 29.5 hours Start 2025.04.27 @ 16:25:13 End 2025.04.27 @ 16:53:03 Sessions 2 Manual Loads 0 Difficulty Rogue Special Mode None Game No. 55 Rogue 55 Adventurer 0 Explorer 0 Win Type - Total 0 Types 0/0/0/0/0/0/0/0/0 Lore% 16 Gallery% 18 Achievement% 18 Wizard Run 0 Options --------- Layout 0 ASCII 0 Keyboard 0 Movement Mouse Keybinds 1 Fullscreen 2 Font 20/SmallcapsGlow Map View 96x60 Zoom Use 0% Tactical HUD 1 Map Filters NONE Filters NONE Steam 1 RUN: 1018cfff-417c-4506-80b8-36db6473e004